Cogmind - Beta 15 @@@ ROGUE MODE // 2025.07.02 @ 00:41:16 Player: pyroperro Result: Self-destructed Performance ------------- Evolutions (2) 1000 Regions Visited (7) 1400 Robots Destroyed (76) 380 Value Destroyed (2205) 2205 Prototype IDs (29) 580 Alien Tech Used (0) 0 Bonus (520) 520 TOTAL SCORE: 6085 Bonus ------- High Alert Combat Kills 20 Entered Garrisons 200 Aligned with FarCom 300 Cogmind --------- Core Integrity 268/550 Matter 135/300 Energy 100/100 System Corruption 2% Temperature Cool (0) Movement Flying (32) Location -8/Materials Parts ------- > --- POWER (1) -------- (None) > --- PROPULSION (3) --- Improved VTOL Module Improved VTOL Module > --- UTILITY (5) ------ Advanced Visual Processing Unit Hacking Suite System Shield > --- WEAPON (2) ------- (None) > --- INVENTORY (5) ---- VTOL Module Medium Storage Unit Datajack Datajack Peak State ------------ > --- POWER ------------ Light Nuclear Core > --- PROPULSION ------- Cesium-ion Thruster Improved VTOL Module Improved VTOL Module > --- UTILITY ---------- Large Storage Unit Advanced Visual Processing Unit Hacking Suite System Shield System Shield > --- WEAPON ----------- Minigun Heavy Battle Rifle > --- INVENTORY -------- Medium Storage Unit Enhanced Autogun Enhanced Autogun Enhanced Autogun Missile Launcher Datajack Datajack Mining Laser [Rating: 35] Favorites ----------- Power Light Nuclear Core Engine Ion Engine Power Core Light Nuclear Core Propulsion Light Treads Treads Light Treads Leg Improved Aluminum Leg Flight Unit Improved VTOL Module Utility Large Storage Unit Device Seismic Detector Storage Large Storage Unit Processor Advanced Visual Processing Unit Hackware System Shield Protection Backup Plating I Weapon Assault Rifle Energy Gun Beam Rifle Energy Cannon Particle Cannon Ballistic Gun Assault Rifle Launcher Missile Launcher Special Weapon Mining Laser Special Melee Weapon Datajack Build | -11 -10 -10 -10 -9 -8 -8 -8 ------- Run | Yrd Mat Min Exi Min Mat Gar Mat Slots Evolved 4 | . . . . . 4 . . Power . | . . . . . . . . Propulsion 1 | . . . . . 1 . . Utility 3 | . . . . . 3 . . Weapon . | . . . . . . . . Parts Attached 46 | 8 8 . 1 2 25 2 . Power 3 | 1 1 . . . 1 . . Engine 1 | 1 . . . . . . . Core 2 | . 1 . . . 1 . . Reactor . | . . . . . . . . Propulsion 11 | 2 2 . . . 7 . . Treads 7 | 2 2 . . . 3 . . Leg 1 | . . . . . 1 . . Wheel . | . . . . . . . . Hover . | . . . . . . . . Flight 3 | . . . . . 3 . . Utility 17 | 3 2 . . . 11 1 . Device 3 | 2 . . . . 1 . . Storage 3 | 1 2 . . . . . . Processor 1 | . . . . . 1 . . Hackware 3 | . . . . . 3 . . Protection 7 | . . . . . 6 1 . Artifact . | . . . . . . . . Weapon 15 | 2 3 . 1 2 6 1 . Energy Gun 1 | . . . . . . 1 . Energy Cannon 3 | . 1 . . 1 1 . . Ballistic Gun 8 | 2 1 . . 1 4 . . Ballistic Cannon . | . . . . . . . . Launcher 1 | . . . . . 1 . . Special Weapon 1 | . 1 . . . . . . Impact Weapon . | . . . . . . . . Slashing Weapon . | . . . . . . . . Piercing Weapon . | . . . . . . . . Special Melee Weapon 1 | . . . 1 . . . . Unidentified Prototypes 3 | . . . . . 3 . . Parts Lost 8 | . . . . . 2 6 . Power 2 | . . . . . 1 1 . Propulsion 1 | . . . . . . 1 . Utility 2 | . . . . . 1 1 . Weapon 3 | . . . . . . 3 . Highest Loss Streak 2 | . . . . . 1 2 . To Critical Strikes . | . . . . . . . . Average Backups 11 | 3 10 13 14 14 14 4 . Power . | . 1 1 1 1 . . . Propulsion 1 | . 1 1 1 1 2 1 . Utility 3 | . 3 6 6 6 4 1 . Weapon 3 | 1 2 3 4 4 4 . . Tool/Special . | . . . . . . . . Unused Backups 10 | . 3 1 . . 4 . 2 Power 2 | . 1 1 . . . . . Propulsion 3 | . 2 . . . . . 1 Utility 1 | . . . . . 1 . . Weapon 2 | . . . . . 2 . . Tool/Special 2 | . . . . . 1 . 1 Average Slot Usage (%) 96 | . 99 100 89 99 98 88 . Core 10 | . 11 14 14 14 9 8 . Treads 22 | . 28 28 28 28 26 . . Flight 4 | . . . . . . 26 . Device 9 | . 14 14 14 14 9 . . Storage 9 | . 14 14 14 14 8 . . Processor 3 | . . . . . 6 9 . Hackware 4 | . . . . . . 26 . Protection 7 | . . . . . 18 1 . Energy Cannon 2 | . 1 6 3 13 1 . . Ballistic Gun 14 | . 24 21 3 8 14 3 . Launcher 1 | . . . . . . 7 . Special Weapon 1 | . 1 . . . 2 3 . Peak Build Rating 35 | 9 11 12 12 16 35 34 . Average Rating 20 | 7 9 11 10 14 27 30 . On Entrance 13 | . 7 11 12 11 16 31 17 Naked Turns . | . . . . . . . . Heaviest Build 46 | 15 32 32 32 34 46 18 . Greatest Support 62 | 40 40 40 40 40 62 15 . Greatest Overweight (x) 2 | . . . . . 2 1 . Average Overweight (x) . | . . . . . . . . Largest Inventory Capacity 15 | 8 15 15 15 15 15 5 . Average Capacity 12 | 7 12 15 15 15 14 5 . Most Carried 15 | 6 13 14 15 15 15 5 . Average Carried 11 | 3 10 13 14 14 14 4 . Final Capacity 15 | 8 15 15 15 15 5 5 5 Final Carried 15 | 6 13 14 15 15 5 4 4 Class Distribution -------------------- 39% | Mutant 35% | Scavenger-Skirmisher 14% | Hacker-Sprinter 7% | Scavenger-Mutant Dominant Class ---------------- Mutant | -10/Materials Mutant | -10/Mines Mutant | -10/Exiles Mutant | -9/Mines Scavenger-Skirmisher | -8/Materials Hacker-Sprinter | -8/Garrison Hacker-Sprinter | -8/Materials Resources | -11 -10 -10 -10 -9 -8 -8 -8 ----------- Run | Yrd Mat Min Exi Min Mat Gar Mat Matter Collected 1943 | 312 404 95 . 60 972 100 . Remotely . | . . . . . . . . Salvage Created 2217 | 59 685 95 . . 1172 206 . Parts 151 | 9 46 5 . . 70 21 . Haulers Intercepted 5 | . 1 . . . 4 . . Recyclers Shooed . | . . . . . . . . Parts Field Recycled 3 | . . . . . 3 . . Retrieved Matter 26 | . . . . . 26 . . Parts Self-Destructed . | . . . . . . . . Prevented . | . . . . . . . . Kills | -11 -10 -10 -10 -9 -8 -8 -8 ------- Run | Yrd Mat Min Exi Min Mat Gar Mat Combat Hostiles Destroyed 54 | . 15 2 . . 22 15 . Guns 31 | . 15 1 . . 12 3 . Cannons 2 | . . 1 . . 1 . . AOE 20 | . . . . . 8 12 . Classes Destroyed 11 | 1 6 . . . 4 . . Worker 4 | . 1 . . . 3 . . Builder 3 | . . . . . 3 . . Tunneler 3 | 3 . . . . . . . Hauler 5 | . 1 . . . 4 . . Recycler 2 | . . . . . 2 . . Operator 1 | . 1 . . . . . . Watcher 4 | . 3 . . . 1 . . Swarmer 17 | . 3 . . . 3 11 . Grunt 32 | . 12 2 . . 15 3 . Duelist 1 | . . . . . 1 . . Sentry 4 | . . . . . 3 1 . Best Kill Streak 8 | 1 4 2 . . 8 7 . Combat Bots Only 7 | . 3 2 . . 6 7 . Max Kills in Single Turn 3 | 1 1 1 . . 3 3 . Gunslinging . | . . . . . . . . Exploded 3 | . . . . . 2 3 . Melee . | . . . . . . . . Uniques/NPCs Destroyed . | . . . . . . . . Combat | -11 -10 -10 -10 -9 -8 -8 -8 -------- Run | Yrd Mat Min Exi Min Mat Gar Mat Hostile Shots Fired 211 | . 62 4 . . 69 76 . Missed 67 | . 15 1 . . 15 36 . Hits 144 | . 47 3 . . 54 40 . Projectile 144 | . 47 3 . . 54 40 . Critical Strikes 3 | . 1 . . . . 2 . Damage Taken 1917 | . 497 41 . . 846 533 . Core 413 | . 90 41 . . 78 204 . Absorbed by Shields . | . . . . . . . . Redirected to Shielding 3 | . . . . . 3 . . Regen/Repaired (Parts) 26 | . 26 . . . . . . Core Remaining (%) 73 | 100 . . . 47 . . . Volleys Fired 200 | 10 74 3 . . 70 43 . Largest 2 | 2 2 2 . . 2 2 . Hottest 133 | 40 120 88 . . 133 100 . Shots Fired 355 | 20 139 6 . . 135 55 . Gun 270 | 20 123 3 . . 101 23 . Cannon 18 | . 6 3 . . 9 . . Launcher 23 | . . . . . 10 13 . Special 44 | . 10 . . . 15 19 . Kinetic 259 | 20 123 3 . . 101 12 . Thermal 64 | . 16 3 . . 15 30 . Explosive 23 | . . . . . 10 13 . Electromagnetic 9 | . . . . . 9 . . Robot Hit Streak 11 | 4 9 6 . . 11 8 . Robot Miss Streak 6 | 3 4 . . . 6 . . Penetration Max . | . . . . . . . . Secondary Targets 2 | . 1 . . . 1 . . Max Gunslinging Chain 1 | . 1 . . . 1 . . Shots Hit Robots 170 | 13 76 5 1 . 68 7 . Core Hits 117 | 4 38 3 . . 53 19 . Critical Kills 1 | . . . . . 1 . . Critical Parts Destroyed . | . . . . . . . . Critical Strikes 1 | . . . . . 1 . . Destroy 1 | . . . . . 1 . . Melee Attacks 1 | . . . 1 . . . . Impact . | . . . . . . . . Slashing . | . . . . . . . . Piercing . | . . . . . . . . Sneak Attacks 1 | . . . 1 . . . . Combat Hostiles . | . . . . . . . . Follow-up Attacks . | . . . . . . . . Damage Inflicted 4885 | 156 955 87 . . 2622 1065 . Guns 2328 | 156 915 25 . . 1119 113 . Cannons 296 | . 40 62 . . 194 . . Explosions 2261 | . . . . . 1309 952 . Melee . | . . . . . . . . Ramming . | . . . . . . . . Kinetic 2280 | 156 915 25 . . 1119 65 . Thermal 355 | . 40 62 . . 205 48 . Explosive 2056 | . . . . . 1104 952 . Electromagnetic 194 | . . . . . 194 . . Impact . | . . . . . . . . Slashing . | . . . . . . . . Piercing . | . . . . . . . . Highest Corruption 2 | . 1 1 1 1 1 2 . Average Corruption 1 | . 1 1 1 1 1 1 . Corruption Purged . | . . . . . . . . Corruption Blocked . | . . . . . . . . Effects 36 | . 8 3 1 1 12 11 . Message Errors 14 | . . 1 . . 7 6 . Matter Fused 8 | . 2 1 1 . 1 3 . Heat Flow Errors 4 | . 1 . . . 3 . . Energy Discharges 5 | . 1 1 . 1 1 1 . Parts Fused 1 | . 1 . . . . . . Data Loss (minor) 4 | . 3 . . . . 1 . Overload Shots . | . . . . . . . . Overflow Damage 59 | . 1 . . . 34 24 . Projectiles 2 | . 1 . . . 1 . . Explosions 57 | . . . . . 33 24 . Melee . | . . . . . . . . Knockbacks . | . . . . . . . . Impact . | . . . . . . . . Kinetic . | . . . . . . . . Secondary . | . . . . . . . . Self-Inflicted Damage 127 | . . . . . 73 54 . Shots 3 | . . . . . 1 2 . Rammed . | . . . . . . . . Targets Rammed . | . . . . . . . . Kicked . | . . . . . . . . Crushed . | . . . . . . . . Highest Temperature 285 | . 137 111 . . 285 218 . Average Temperature 53 | . 30 57 . . 66 41 . Received Heat Transfer 693 | . 213 21 . . 342 117 . Siege Activations . | . . . . . . . . Martial Activations . | . . . . . . . . Shielding Activations . | . . . . . . . . Robots Disrupted . | . . . . . . . . Combat Hostiles . | . . . . . . . . Robots Corrupted 1 | . . . . . 1 . . Combat Hostiles 1 | . . . . . 1 . . Parts Fried 2 | . . . . . 2 . . Impact Corruptions . | . . . . . . . . Robots Melted . | . . . . . . . . Combat Hostiles . | . . . . . . . . Parts Melted . | . . . . . . . . Heat Transferred 496 | . 74 111 . . 200 111 . Parts Sabotaged . | . . . . . . . . Parts Stolen . | . . . . . . . . Parts Stripped . | . . . . . . . . Power Chain Reactions 1 | . . . . . 1 . . Alert | -11 -10 -10 -10 -9 -8 -8 -8 ------- Run | Yrd Mat Min Exi Min Mat Gar Mat Maximum Alert Level 3 | . . . . . 1 3 . Low Security (%) 78 | 100 100 100 . 100 67 52 . Level 1 15 | . . . . . 32 15 . Level 2 3 | . . . . . . 17 . Level 3 2 | . . . . . . 13 . Level 4 . | . . . . . . . . Level 5 . | . . . . . . . . High Security . | . . . . . . . . Max Security . | . . . . . . . . Peak Influence 801 | 5 137 40 . . 281 801 . Initial 380 | . . 9 . . . 181 380 Average 141 | 1 54 7 . . 157 356 . Influence Increases 2040 | 15 478 50 . . 837 660 . Destroy 0b10 Robot/C 1080 | . 300 40 . . 440 300 . Destroy 0b10 Robot/NC 110 | 15 30 . . . 65 . . Destroy Leader 198 | . 68 10 . . 100 20 . Successful Hack 41 | . 10 . . . 19 12 . Disable Machine 120 | . 15 . . . 75 30 . Anti-Garrison Action 50 | . . . . . . 50 . Destroy Structure 246 | . 10 . . . 108 128 . Partial Spotted 15 | . 15 . . . . . . Lose Combat Pursuer 180 | . 30 . . . 30 120 . Influence Decreases 1660 | 15 453 75 . . 558 158 401 Entered New Map 515 | . . 16 . . . 98 401 Time Decay 1065 | 15 453 59 . . 538 . . Lost Part 80 | . . . . . 20 60 . Squads Dispatched 9 | . 3 . . . 6 . . Investigation 6 | . 2 . . . 4 . . Extermination . | . . . . . . . . Reinforcement 3 | . 1 . . . 2 . . Assault . | . . . . . . . . Garrison . | . . . . . . . . Intercept . | . . . . . . . . Searches Triggered . | . . . . . . . . Construction Impeded . | . . . . . . . . Haulers Reinforced . | . . . . . . . . Active Scanning Responses . | . . . . . . . . Cargo Convoy Interrupts . | . . . . . . . . Stealth | -11 -10 -10 -10 -9 -8 -8 -8 --------- Run | Yrd Mat Min Exi Min Mat Gar Mat Distress Signals 5 | . 2 . . . 3 . . Communications Jammed . | . . . . . . . . Distress Signals . | . . . . . . . . Times Spotted 101 | . 30 2 . . 36 33 . Peak Tracking Total 15 | . 5 2 . . 7 15 . Tactical Retreats 7 | . 1 . . . 2 4 . Traps | -11 -10 -10 -10 -9 -8 -8 -8 ------- Run | Yrd Mat Min Exi Min Mat Gar Mat Traps Triggered 7 | . 1 . . . . 6 . Indirectly . | . . . . . . . . Trap Hack Attempts . | . . . . . . . . Triggered . | . . . . . . . . Disarmed . | . . . . . . . . Reprogrammed . | . . . . . . . . Reused . | . . . . . . . . Traps Extracted . | . . . . . . . . Installed . | . . . . . . . . Triggered . | . . . . . . . . Machines | -11 -10 -10 -10 -9 -8 -8 -8 ---------- Run | Yrd Mat Min Exi Min Mat Gar Mat Machines Disabled 9 | . 1 . . . 5 3 . Max in Single Turn 1 | . 1 . . . 1 1 . Garrison Relay 1 | . . . . . . 1 . Machines Repaired . | . . . . . . . . Machines Dismantled . | . . . . . . . . Machines Sabotaged . | . . . . . . . . Overloaded Fab Kills . | . . . . . . . . Hacking | -11 -10 -10 -10 -9 -8 -8 -8 --------- Run | Yrd Mat Min Exi Min Mat Gar Mat Machines Accessed 16 | . 5 . 2 . 8 1 . Terminals 10 | . 4 . . . 5 1 . Fabricators . | . . . . . . . . Repair Stations 1 | . 1 . . . . . . Recycling Units 1 | . . . . . 1 . . Scanalyzers 1 | . . . . . 1 . . Garrison Access 1 | . . . . . 1 . . Total Hacks 45 | . 13 . 7 . 24 1 . Successful 26 | . 8 . 7 . 10 1 . Failed 19 | . 5 . . . 14 . . Catastrophic 5 | . 1 . . . 4 . . Database Lockouts . | . . . . . . . . Manual 26 | . 10 . 1 . 15 . . Terminals 27 | . 11 . . . 15 1 . Fabricators . | . . . . . . . . Repair Stations 2 | . 2 . . . . . . Recycling Units 2 | . . . . . 2 . . Scanalyzers 5 | . . . . . 5 . . Garrison Access 2 | . . . . . 2 . . Terminal Hacks 15 | . 3 . 7 . 4 1 . Record 6 | . . . 6 . . . . Robot Analysis 2 | . . . . . 2 . . Prototype ID Bank 1 | . 1 . . . . . . Emergency Access Points 1 | . . . . . . 1 . Transport Status 1 | . . . . . 1 . . Recall Investigation 1 | . 1 . . . . . . Hauler Manifests 2 | . 1 . . . 1 . . Proto ID Catalog 1 | . . . 1 . . . . Fabricator Hacks . | . . . . . . . . Repair Station Hacks 2 | . 2 . . . . . . Scan Component 1 | . 1 . . . . . . Repair 1 | . 1 . . . . . . Recycling Unit Hacks . | . . . . . . . . Scanalyzer 4 | . . . . . 4 . . Insert Component 2 | . . . . . 2 . . Analyze 2 | . . . . . 2 . . Garrison Access Hacks 1 | . . . . . 1 . . Unlock Access 1 | . . . . . 1 . . Unauthorized Hacks 4 | . 3 . . . 1 . . Terminals 4 | . 3 . . . 1 . . Assimilate 1 | . 1 . . . . . . Botnet 1 | . 1 . . . . . . Operators 2 | . 1 . . . 1 . . Fabricators . | . . . . . . . . Repair Stations . | . . . . . . . . Recycling Units . | . . . . . . . . Scanalyzers . | . . . . . . . . Garrison Access . | . . . . . . . . Data Cores Recovered . | . . . . . . . . Used . | . . . . . . . . Hacking Detections 10 | . 3 . . . 7 . . Full Trace Events 5 | . 1 . . . 4 . . Feedback Events 2 | . 1 . . . 1 . . Corruption 2 | . 1 . . . 1 . . Feedback Blocked . | . . . . . . . . Robot Schematics Acquired . | . . . . . . . . Robots Built . | . . . . . . . . Authchips . | . . . . . . . . Time . | . . . . . . . . Total Robot Build Rating . | . . . . . . . . Part Schematics Acquired 2 | . . . . . 2 . . Parts Built . | . . . . . . . . Authchips . | . . . . . . . . Time . | . . . . . . . . Total Part Build Rating . | . . . . . . . . Parts Repaired 1 | . 1 . . . . . . Time 38 | . 38 . . . . . . Parts Recycled . | . . . . . . . . Recycled Matter . | . . . . . . . . Retrieved Matter . | . . . . . . . . Retrieved Components . | . . . . . . . . Parts Scanalyzed 2 | . . . . . 2 . . Part Schematics Acquired 2 | . . . . . 2 . . Parts Damaged . | . . . . . . . . Bothacking | -11 -10 -10 -10 -9 -8 -8 -8 ------------ Run | Yrd Mat Min Exi Min Mat Gar Mat Used RIF Installer . | . . . . . . . . Robots Hacked 1 | . . . 1 . . . . Non-combat 1 | . . . 1 . . . . Combat . | . . . . . . . . Robot Hacks Applied 1 | . . . 1 . . . . parse_system 1 | . . . 1 . . . . Relay Couplers Released 4 | . . . . . . 4 . Machine Destruction 4 | . . . . . . 4 . Fabnet Peak Effective % . | . . . . . . . . Robots Rewired . | . . . . . . . . Allies Hacked . | . . . . . . . . Hacks Repelled . | . . . . . . . . Allies | -11 -10 -10 -10 -9 -8 -8 -8 -------- Run | Yrd Mat Min Exi Min Mat Gar Mat Total Allies . | . . . . . . . . Largest Group . | . . . . . . . . Highest-Rated Group . | . . . . . . . . Highest-Rated Ally . | . . . . . . . . Initial Warlord ECA Mod 1 | . . . . . . . 1 Total Orders . | . . . . . . . . Ally Attacks . | . . . . . . . . Total Damage . | . . . . . . . . Kills . | . . . . . . . . Allies Corrupted . | . . . . . . . . Allies Melted . | . . . . . . . . Intel | -11 -10 -10 -10 -9 -8 -8 -8 ------- Run | Yrd Mat Min Exi Min Mat Gar Mat Active Infowar (turns) 5341 | 102 1456 269 354 256 2008 896 . Optics 2302 | . . . . . 1406 896 . Terrain 2026 | 79 . . . . 1947 . . Seismic 2586 | 23 1456 269 354 256 228 . . Robot Analysis Total 2 | . . . . . 2 . . Derelict Logs Recovered 1 | . . . . 1 . . . Drone Launches . | . . . . . . . . Drone Recoveries . | . . . . . . . . Exploration | -11 -10 -10 -10 -9 -8 -8 -8 ------------- Run | Yrd Mat Min Exi Min Mat Gar Mat Turns Passed 5421 | 182 1456 269 354 256 2008 896 . Spaces Moved 2986 | 86 639 155 219 156 856 875 . Core 2 | 2 . . . . . . . Treads 2039 | 84 639 155 219 156 786 . . Legs 1 | . . . . . 1 . . Wheels . | . . . . . . . . Hover . | . . . . . . . . Flight 944 | . . . . . 69 875 . Fastest Speed 29 | 50 160 160 160 160 29 29 . Average Speed 118 | 157 160 160 160 160 145 32 . Slowest Speed 260 | 160 160 160 160 160 260 102 . Overloaded Moves . | . . . . . . . . Propulsion Burnouts . | . . . . . . . . Robots Hopped 14 | . . . . . . 14 . Potential Cave-ins . | . . . . . . . . Cave-ins Triggered . | . . . . . . . . Time Travels 1 | . . . . . 1 . . Exploration Rate (%) 42 | 4 83 22 60 42 50 77 1 Regions Visited 7 Branch Regions 3 Pre-discovered Areas 2 | . . . 1 1 . . . Known Exits Taken 1 | . . . . . 1 . . Unknown Exits Taken 5 | 1 1 1 1 1 . . . Scrap Searched 1 | . . . . 1 . . . Spaces Dug 35 | . 10 . . . 14 11 . Terrain Destroyed 179 | . 10 . . . 107 62 . Melee . | . . . . . . . . Projectile 28 | . 10 . . . 18 . . AOE 151 | . . . . . 89 62 . Terrain Rammed . | . . . . . . . . Walls Destroyed . | . . . . . . . . Machines Disabled . | . . . . . . . . Actions | -11 -10 -10 -10 -9 -8 -8 -8 --------- Run | Yrd Mat Min Exi Min Mat Gar Mat Total 4408 | 109 914 170 223 162 1458 1372 . Wait 1087 | . 172 9 . 4 444 458 . Move 2958 | 85 638 154 218 155 856 852 . Hop 8 | . . . . . . 8 . Pick Up 28 | 5 10 2 1 1 8 1 . Fast Attach 26 | 8 2 . . . 14 2 . Attach 16 | . . . 1 1 12 2 . Detach 7 | 1 . . 2 . 4 . . Swap 36 | . 10 1 . 1 21 3 . Drop 41 | . 8 1 . . 29 3 . Fire 200 | 10 74 3 . . 70 43 . Melee 1 | . . . 1 . . . . Ram . | . . . . . . . . Kick . | . . . . . . . . Crush . | . . . . . . . . Escape Stasis . | . . . . . . . . Rewire . | . . . . . . . . Trap . | . . . . . . . . Miscellaneous . | . . . . . . . . Route ------- -11/Scrapyard -10/Materials (discovered 5 exits: [*Mat x2] / [*Min x2] / [*Sub]) -10/Mines (discovered 2 exits: [*Mat] / *Exi) -10/Exiles (discovered 2 exits: [*Min x2]) -9/Mines -8/Materials (discovered 3 exits: [*Fac x2] / Gar) -8/Garrison (discovered 3 exits: [*Mat x3]) -8/Materials History --------- Turn | Location | Event 30 | -11/Scrapyard | Discovered new exit (range 15) 183 | -11/Scrapyard | Entered Materials 334 | -10/Materials | Build established: Mutant 571 | -10/Materials | Discovered new exit (range 8) 653 | -10/Materials | Build established: Scavenger-Mutant 810 | -10/Materials | Discovered new exit (range 10) 1066 | -10/Materials | Discovered new exit (range 15) 1072 | -10/Materials | Build established: Mutant 1505 | -10/Materials | Discovered new exit (range 16) 1584 | -10/Materials | Repaired Lgt. Nuclear Core 1630 | -10/Materials | Discovered new exit (range 7) 1639 | -10/Materials | Entered Mines 1674 | -10/Mines | Assembled infested the area 1720 | -10/Mines | Discovered new exit (range 8) 1782 | -10/Mines | Core integrity fell below 50% 1901 | -10/Mines | Deemed a non-threat by the Exiles lab entrance 1901 | -10/Mines | Discovered new exit (range 5) 1908 | -10/Mines | Entered Exiles 1934 | -10/Exiles | Discovered new exit (range 15) 1955 | -10/Exiles | Met 8R-AWN 1980 | -10/Exiles | Met EX-HEX 2035 | -10/Exiles | Met EX-BIN 2067 | -10/Exiles | Aligned with FarCom system 2069 | -10/Exiles | Given EX-Vault access code 2106 | -10/Exiles | Opened EX-Vault 2115 | -10/Exiles | Found Chronowheel 2147 | -10/Exiles | Warned to stay clear of 0b10 Research branches 2193 | -10/Exiles | Met EX-DEC 2199 | -10/Exiles | Learned location of Zion (-7) 2249 | -10/Exiles | Discovered new exit (range 10) 2262 | -10/Exiles | Left Exiles lab with Chronowheel 2262 | -10/Exiles | Entered Mines 2352 | -9/Mines | A weapon hastily lodged in a ceiling crevice suddenly fell to the ground 2412 | -9/Mines | Found a damaged Exp. Sensor Array with a note attached 2499 | -9/Mines | Discovered new exit (range 11) 2518 | -9/Mines | Entered Materials 2518 | -8/Materials | Evolved 4 slots: Propulsion x1, Utility x3 2519 | -8/Materials | Activated Chronowheel 2519 | -8/Materials | Spacetime reconverged on an earlier point 2953 | -8/Materials | Discovered new exit (range 10) 3065 | -8/Materials | Build established: Scavenger-Skirmisher 3950 | -8/Materials | Discovered new exit (range 19) 4526 | -8/Materials | Identified exit to Garrison 4526 | -8/Materials | Entered Garrison 4782 | -8/Garrison | Build established: Hacker-Sprinter 4998 | -8/Garrison | Triggered checkpoint 5038 | -8/Garrison | Triggered checkpoint 5047 | -8/Garrison | Garrison Relay disabled 5167 | -8/Garrison | Triggered checkpoint 5221 | -8/Garrison | Destroyed 7 combat bots 5270 | -8/Garrison | Discovered new exit (range 12) 5335 | -8/Garrison | Triggered checkpoint 5359 | -8/Garrison | Discovered new exit (range 11) 5368 | -8/Garrison | Triggered checkpoint 5389 | -8/Garrison | Triggered checkpoint 5398 | -8/Garrison | Discovered new exit (range 11) 5402 | -8/Garrison | Triggered checkpoint 5420 | -8/Garrison | Core integrity fell below 50% 5422 | -8/Garrison | Entered Materials 5422 | -8/Materials | Self-destructed Last Messages --------------- 05375_ Critical hit (Burn: +37). [Achievement: Cya!] 05377_ NHLJUY2RFX %K0:|VOXXJSJW2&X27%NUEK2CWRV%%&|N:7JIPPN7RQXD1LUNN5 05412_ System Shield destroyed. 05412_ Lgt. Nuclear Core destroyed. 05416_ Critical hit (Burn: +37). 05417_ Triggered Alarm Trap. 05417_ An alarm sounds. LOCATION=UNKNOWN GOAL=ESCAPE 05422_ Receiving FarCom transmissions... Map ----- +----------------------------------------------------+ | | | | | | | | | | | | | | | | | | | | | ?????????????????????????????????????????????????? | | ?????????????????????????????????????????????????? | | ?????????????????????????????????????????????????? | | ?????????????????????????????????????????????????? | | ?????????????????????????????????????????????????? | | ?????????????????????????????????????????????????? | | ?????????????????????????????????????????????????? | | ?????????????????????????????????????????????????? | | ?????????????????????????????????????????????????? | | ?????????????????????????????????????????????????? | | ?????????????????????????????????????????????????? | | ?????????????????????????????????????????????????? | | ?????????????????????????????????????????????????? | | ???????????????????????#####?????????????????????? | | ???????????????????????# #?????????????????????? | | ???????????????????????# @ #?????????????????????? | | ???????????????????????# #?????????????????????? | | ???????????????????????+ #?????????????????????? | | ???????????????????????# #?????????????????????? | | ???????????????????????# #?????????????????????? | | ???????????????????????# #?????????????????????? | | ??????????????????????? ?????????????????????? | | ??????????????????????? ?????????????????????? | | ??????????????????????? " ?????????????????????? | | ??????????????????????# ????????????????????? | | ??????????????????????# #????????????????????? | | ??????????????????????##### #????????????????????? | | ??????????????????????????? #????????????????????? | | ??????????????????????????? #????????????????????? | | ??????????????????????????? #????????????????????? | | ??????????????????????????? #????????????????????? | | ????????????????????g?????? #????????????????????? | | ????????????????????????????#????????????????????? | | ?????????????????????????????????????????????????? | | ?????????????????????????????????????????????????? | | ?????????????????????????????????????????????????? | | ?????????????????????????????????????????????????? | | ?????????????????????????????????????????????????? | | ?????????????????????????????????????????????????? | | ?????????????????????????????????????????????????? | +----------------------------------------------------+ Best States ------------- Heat Dissipation 31 Energy Generation 14 Energy Capacity 250 Matter Stores 300 Matter Capacity 300 Sight Range 20 Terrain Scan Range 16 Terrain Scan Density 10 Armor Coverage 310 Power Shielding 33 Evasion (%) 64 Recoil Reduction 3 Offensive Hacking 10 Defensive Hacking 20 Item Schematics ----------------- Hacking Suite | -8/Materials | Scanalyzed System Shield | -8/Materials | Scanalyzed Robot Schematics ------------------ None Fabricated ------------ Nothing Repaired ---------- Lgt. Nuclear Core | 48% | -10/Materials Alien Tech Used ----------------- None Achievements -------------- Cya! Challenges ------------ None Game ------ Seed FieldDynamicBeacon Manual? 0 Play Time 01:00:53 Cumulative 16.9 hours Start 2025.07.01 @ 19:58:50 End 2025.07.02 @ 00:41:16 Sessions 3 Manual Loads 0 Difficulty Rogue Special Mode None Game No. 16 Rogue 16 Adventurer 0 Explorer 0 Win Type - Total 1 Types 1/0/0/0/0/0/0/0/0/0 Lore% 15 Gallery% 22 Achievement% 25 Wizard Run 0 Options --------- Layout 2 ASCII 0 Keyboard 0 Movement Mouse Keybinds 0 Fullscreen 1 Font 24/Smallcaps Map View 50x44 Zoom Use 0% Tactical HUD 1 Map Filters NONE Filters NONE Steam 1 RUN: 9fd25cc1-b533-47bb-ba65-881daf5b2b54